[Event "Titled Tuesday Blitz March 21 Early 2023"]
[White "Andreev, Konstantin"]
[Black "Gharibyan, Mamikon"]
[WhiteFideId "24239305"]
[BlackFideId "13308300"]
[WhiteElo "2106"]
[BlackElo "2445"]
[Result "0-1"]
[Round "03"]
[TimeControl "180+2"]
[Date "2023.03.21"]
[WhiteClock "0:00:04"]
[BlackClock "0:00:47"]

1. e4 {[%clk 0:02:56]}  g6 {[%clk 0:02:59]} 2. d4 {[%clk 0:02:56]}  d6 {[%clk 0:02:59]} 3. Nc3 {[%clk 0:02:56]}  a6 {[%clk 0:02:59]} 4. h4 {[%clk 0:02:56]}  h5 {[%clk 0:02:54]} 5. Be3 {[%clk 0:02:54]}  b5 {[%clk 0:02:54]} 6. Qd2 {[%clk 0:02:54]}  Bb7 {[%clk 0:02:54]} 7. f3 {[%clk 0:02:53]}  Bg7 {[%clk 0:02:54]} 8. O-O-O {[%clk 0:02:52]}  Nd7 {[%clk 0:02:54]} 9. Nh3 {[%clk 0:02:51]}  b4 {[%clk 0:02:53]} 10. Ne2 {[%clk 0:02:50]}  a5 {[%clk 0:02:53]} 11. Ng5 {[%clk 0:02:49]}  e5 {[%clk 0:02:46]} 12. Kb1 {[%clk 0:02:44]}  Ngf6 {[%clk 0:02:44]} 13. dxe5 {[%clk 0:02:38]}  Nxe5 {[%clk 0:02:43]} 14. Nd4 {[%clk 0:02:35]}  Rb8 {[%clk 0:02:41]} 15. Rg1 {[%clk 0:02:30]}  O-O {[%clk 0:02:32]} 16. Be2 {[%clk 0:02:21]}  a4 {[%clk 0:02:26]} 17. Qxb4 {[%clk 0:02:07]}  c5 {[%clk 0:02:21]} 18. Qxa4 {[%clk 0:02:01]}  cxd4 {[%clk 0:02:21]} 19. Bxd4 {[%clk 0:02:01]}  Qc7 {[%clk 0:02:19]} 20. g4 {[%clk 0:01:48]}  Bc6 {[%clk 0:02:15]} 21. Qa3 {[%clk 0:01:45]}  Ra8 {[%clk 0:02:11]} 22. Qc3 {[%clk 0:01:42]}  Rfc8 {[%clk 0:02:00]} 23. gxh5 {[%clk 0:01:38]}  Nxh5 {[%clk 0:02:00]} 24. Qe3 {[%clk 0:01:17]}  Ba4 {[%clk 0:01:56]} 25. Bc3 {[%clk 0:01:15]}  Qb7 {[%clk 0:01:49]} 26. b3 {[%clk 0:01:07]}  Qc6 {[%clk 0:01:38]} 27. Kb2 {[%clk 0:00:48]}  Nf4 {[%clk 0:01:37]} 28. Rd2 {[%clk 0:00:15]}  Bb5 {[%clk 0:01:24]} 29. Bxb5 {[%clk 0:00:13]}  Qxb5 {[%clk 0:01:25]} 30. Qxf4 {[%clk 0:00:10]}  Rxc3 {[%clk 0:01:19]} 31. Kb1 {[%clk 0:00:10]}  Rc7 {[%clk 0:01:12]} 32. Rd5 {[%clk 0:00:09]}  Qb6 {[%clk 0:01:11]} 33. Rgd1 {[%clk 0:00:07]}  Rxc2 {[%clk 0:01:01]} 34. Kxc2 {[%clk 0:00:06]}  Rxa2+ {[%clk 0:01:00]} 35. Kc3 {[%clk 0:00:04]}  Nd3+ {[%clk 0:00:47]} 0-1


[Site "https://www.chess.com"]

[Event "Titled Tuesday Blitz March 21 Early 2023"]
[White "Kozin, Yuri"]
[Black "Perez Ponsa, Federico"]
[WhiteFideId "4129920"]
[BlackFideId "117927"]
[WhiteElo "2541"]
[BlackElo "2592"]
[Result "0-1"]
[Round "03"]
[TimeControl "180+2"]
[Date "2023.03.21"]
[WhiteClock "0:00:08"]
[BlackClock "0:00:08"]

1. e4 {[%clk 0:03:00]}  e5 {[%clk 0:02:53]} 2. Nf3 {[%clk 0:03:00]}  Nc6 {[%clk 0:02:54]} 3. Bb5 {[%clk 0:03:01]}  a6 {[%clk 0:02:54]} 4. Ba4 {[%clk 0:03:01]}  Nf6 {[%clk 0:02:55]} 5. O-O {[%clk 0:03:01]}  b5 {[%clk 0:02:55]} 6. Bb3 {[%clk 0:03:00]}  Bc5 {[%clk 0:02:56]} 7. d3 {[%clk 0:03:01]}  O-O {[%clk 0:02:56]} 8. Be3 {[%clk 0:03:01]}  d6 {[%clk 0:02:55]} 9. h3 {[%clk 0:03:01]}  h6 {[%clk 0:02:53]} 10. Nc3 {[%clk 0:03:00]}  Re8 {[%clk 0:02:46]} 11. a4 {[%clk 0:03:00]}  Rb8 {[%clk 0:02:41]} 12. axb5 {[%clk 0:02:56]}  axb5 {[%clk 0:02:42]} 13. Nd5 {[%clk 0:02:53]}  Nxd5 {[%clk 0:02:39]} 14. Bxd5 {[%clk 0:02:50]}  Ne7 {[%clk 0:02:40]} 15. Bb3 {[%clk 0:02:46]}  Ng6 {[%clk 0:02:37]} 16. Re1 {[%clk 0:02:37]}  Qf6 {[%clk 0:02:33]} 17. Kh2 {[%clk 0:02:20]}  Nf4 {[%clk 0:02:24]} 18. Bxc5 {[%clk 0:01:57]}  dxc5 {[%clk 0:02:22]} 19. Ng1 {[%clk 0:01:57]}  Be6 {[%clk 0:01:53]} 20. Ba2 {[%clk 0:01:42]}  c4 {[%clk 0:01:47]} 21. Qf3 {[%clk 0:01:38]}  Red8 {[%clk 0:01:03]} 22. Re3 {[%clk 0:01:19]}  Ra8 {[%clk 0:00:57]} 23. dxc4 {[%clk 0:00:53]}  bxc4 {[%clk 0:00:30]} 24. Ra3 {[%clk 0:00:39]}  Rxa3 {[%clk 0:00:28]} 25. bxa3 {[%clk 0:00:40]}  Rd2 {[%clk 0:00:28]} 26. Rc1 {[%clk 0:00:31]}  c3 {[%clk 0:00:22]} 27. Bxe6 {[%clk 0:00:29]}  Nxe6 {[%clk 0:00:22]} 28. Qxc3 {[%clk 0:00:20]}  Rxf2 {[%clk 0:00:18]} 29. Qg3 {[%clk 0:00:21]}  Ng5 {[%clk 0:00:15]} 30. Re1 {[%clk 0:00:17]}  Rxc2 {[%clk 0:00:14]} 31. h4 {[%clk 0:00:17]}  Ne6 {[%clk 0:00:13]} 32. Nf3 {[%clk 0:00:16]}  Nf4 {[%clk 0:00:14]} 33. Rg1 {[%clk 0:00:16]}  Ne2 {[%clk 0:00:13]} 34. Qf2 {[%clk 0:00:15]}  Nd4 {[%clk 0:00:14]} 35. Qxc2 {[%clk 0:00:07]}  Nxc2 {[%clk 0:00:13]} 36. a4 {[%clk 0:00:07]}  Qf4+ {[%clk 0:00:10]} 37. Kh1 {[%clk 0:00:07]}  Qxe4 {[%clk 0:00:10]} 38. a5 {[%clk 0:00:07]}  Qa4 {[%clk 0:00:10]} 39. Rc1 {[%clk 0:00:06]}  e4 {[%clk 0:00:08]} 40. Ne5 {[%clk 0:00:06]}  e3 {[%clk 0:00:06]} 41. a6 {[%clk 0:00:06]}  e2 {[%clk 0:00:06]} 42. Nf3 {[%clk 0:00:06]}  Qxa6 {[%clk 0:00:04]} 43. Rxc2 {[%clk 0:00:06]}  Qa1+ {[%clk 0:00:04]} 44. Kh2 {[%clk 0:00:07]}  e1=Q {[%clk 0:00:04]} 45. Nxe1 {[%clk 0:00:07]}  Qxe1 {[%clk 0:00:05]} 46. Rc4 {[%clk 0:00:05]}  Qe5+ {[%clk 0:00:05]} 47. g3 {[%clk 0:00:06]}  c5 {[%clk 0:00:06]} 48. Rf4 {[%clk 0:00:07]}  Qd5 {[%clk 0:00:06]} 49. Kh3 {[%clk 0:00:08]}  c4 {[%clk 0:00:07]} 50. Kg4 {[%clk 0:00:08]}  c3 {[%clk 0:00:07]} 51. Rf2 {[%clk 0:00:07]}  c2 {[%clk 0:00:07]} 52. Rxc2 {[%clk 0:00:07]}  Qe4+ {[%clk 0:00:08]} 53. Kh3 {[%clk 0:00:08]}  Qxc2 {[%clk 0:00:08]} 0-1


[Site "https://www.chess.com"]

[Event "Titled Tuesday Blitz March 21 Early 2023"]
[White "Quinones Garcia, Santiago"]
[Black "Kobo, Ori"]
[WhiteFideId "4408497"]
[BlackFideId "2812320"]
[WhiteElo "2263"]
[BlackElo "2447"]
[Result "0-1"]
[Round "03"]
[TimeControl "180+2"]
[Date "2023.03.21"]
[WhiteClock "0:02:05"]
[BlackClock "0:01:49"]

1. d4 {[%clk 0:03:00]}  Nf6 {[%clk 0:03:00]} 2. c4 {[%clk 0:03:00]}  g6 {[%clk 0:03:00]} 3. Nc3 {[%clk 0:03:00]}  Bg7 {[%clk 0:03:01]} 4. e4 {[%clk 0:03:00]}  d6 {[%clk 0:03:01]} 5. Nf3 {[%clk 0:03:00]}  Bg4 {[%clk 0:03:02]} 6. Be2 {[%clk 0:03:01]}  Bxf3 {[%clk 0:03:02]} 7. Bxf3 {[%clk 0:03:01]}  e5 {[%clk 0:03:03]} 8. Be3 {[%clk 0:03:01]}  O-O {[%clk 0:02:56]} 9. O-O {[%clk 0:03:00]}  Nc6 {[%clk 0:02:54]} 10. Ne2 {[%clk 0:02:57]}  exd4 {[%clk 0:02:47]} 11. Nxd4 {[%clk 0:02:58]}  Ne5 {[%clk 0:02:47]} 12. Be2 {[%clk 0:02:58]}  Nxe4 {[%clk 0:02:47]} 13. f4 {[%clk 0:02:54]}  Nd7 {[%clk 0:02:38]} 14. Bf3 {[%clk 0:02:53]}  Re8 {[%clk 0:02:38]} 15. Qc2 {[%clk 0:02:48]}  Ng3 {[%clk 0:02:37]} 16. hxg3 {[%clk 0:02:42]}  Rxe3 {[%clk 0:02:36]} 17. Qd2 {[%clk 0:02:40]}  Qe8 {[%clk 0:02:17]} 18. Bxb7 {[%clk 0:02:37]}  Rb8 {[%clk 0:02:04]} 19. Bf3 {[%clk 0:02:27]}  Nc5 {[%clk 0:01:55]} 20. Rad1 {[%clk 0:02:14]}  Rd3 {[%clk 0:01:50]} 21. Qxd3 {[%clk 0:02:04]}  Nxd3 {[%clk 0:01:49]} 22. Rxd3 {[%clk 0:02:05]}  Bxd4+ {[%clk 0:01:49]} 0-1


[Site "https://www.chess.com"]

[Event "Titled Tuesday Blitz March 21 Early 2023"]
[White "Urazayev, Arystanbek"]
[Black "TimGrutter03"]
[WhiteFideId "13709810"]
[WhiteElo "2479"]
[BlackElo "2534"]
[Result "1-0"]
[Round "03"]
[TimeControl "180+2"]
[Date "2023.03.21"]
[WhiteClock "0:00:45"]
[BlackClock "0:00:01"]

1. d4 {[%clk 0:03:00]}  Nf6 {[%clk 0:02:59]} 2. c4 {[%clk 0:03:01]}  g6 {[%clk 0:02:58]} 3. Nc3 {[%clk 0:03:01]}  Bg7 {[%clk 0:02:59]} 4. e4 {[%clk 0:03:01]}  d6 {[%clk 0:02:59]} 5. Be2 {[%clk 0:03:02]}  O-O {[%clk 0:02:59]} 6. Nf3 {[%clk 0:03:02]}  e5 {[%clk 0:02:58]} 7. O-O {[%clk 0:03:03]}  exd4 {[%clk 0:02:56]} 8. Nxd4 {[%clk 0:03:03]}  Re8 {[%clk 0:02:56]} 9. Qc2 {[%clk 0:03:02]}  Nxe4 {[%clk 0:02:48]} 10. Nxe4 {[%clk 0:03:02]}  Bxd4 {[%clk 0:02:49]} 11. Bg5 {[%clk 0:03:02]}  f6 {[%clk 0:02:37]} 12. Bh6 {[%clk 0:02:32]}  f5 {[%clk 0:02:01]} 13. Bg5 {[%clk 0:02:29]}  Qd7 {[%clk 0:02:00]} 14. Nf6+ {[%clk 0:02:29]}  Bxf6 {[%clk 0:01:58]} 15. Bxf6 {[%clk 0:02:30]}  Qe6 {[%clk 0:01:59]} 16. Qc3 {[%clk 0:02:27]}  Nc6 {[%clk 0:01:24]} 17. Bf3 {[%clk 0:02:26]}  Qf7 {[%clk 0:01:21]} 18. Rfe1 {[%clk 0:02:24]}  Be6 {[%clk 0:01:19]} 19. b3 {[%clk 0:02:22]}  h5 {[%clk 0:01:03]} 20. h4 {[%clk 0:02:22]}  Kh7 {[%clk 0:01:02]} 21. Re2 {[%clk 0:02:17]}  Bd7 {[%clk 0:01:00]} 22. Bd5 {[%clk 0:02:02]}  Qf8 {[%clk 0:01:00]} 23. Rae1 {[%clk 0:02:00]}  Rxe2 {[%clk 0:01:00]} 24. Rxe2 {[%clk 0:02:01]}  Re8 {[%clk 0:00:56]} 25. Rxe8 {[%clk 0:01:48]}  Qxe8 {[%clk 0:00:56]} 26. Kh2 {[%clk 0:01:37]}  Be6 {[%clk 0:00:44]} 27. Bxc6 {[%clk 0:01:28]}  Qxc6 {[%clk 0:00:34]} 28. f3 {[%clk 0:01:22]}  Qe8 {[%clk 0:00:30]} 29. Qe3 {[%clk 0:01:20]}  b6 {[%clk 0:00:25]} 30. Bb2 {[%clk 0:01:20]}  Bd7 {[%clk 0:00:21]} 31. Qg5 {[%clk 0:01:20]}  Qf8 {[%clk 0:00:16]} 32. Qd2 {[%clk 0:01:03]}  Qe7 {[%clk 0:00:16]} 33. Kg3 {[%clk 0:00:50]}  c6 {[%clk 0:00:10]} 34. f4 {[%clk 0:00:48]}  Kg8 {[%clk 0:00:05]} 35. Qc3 {[%clk 0:00:47]}  Qh7 {[%clk 0:00:02]} 36. Qf6 {[%clk 0:00:45]}  d5 {[%clk 0:00:01]} 37. Qd8+ {[%clk 0:00:45]} 1-0


[Site "https://www.chess.com"]

[Event "Titled Tuesday Blitz March 21 Early 2023"]
[White "Fier, Alexandr"]
[Black "Ljukin, Sergei"]
[WhiteFideId "2107139"]
[BlackFideId "14102200"]
[WhiteElo "2610"]
[BlackElo "2312"]
[Result "0-1"]
[Round "03"]
[TimeControl "180+2"]
[Date "2023.03.21"]
[WhiteClock "0:01:29"]
[BlackClock "0:00:12"]

1. c4 {[%clk 0:03:00]}  c6 {[%clk 0:02:54]} 2. Nf3 {[%clk 0:03:00]}  d5 {[%clk 0:02:54]} 3. g3 {[%clk 0:03:00]}  Nf6 {[%clk 0:02:53]} 4. Bg2 {[%clk 0:03:01]}  Nbd7 {[%clk 0:02:52]} 5. O-O {[%clk 0:03:01]}  e5 {[%clk 0:02:52]} 6. d4 {[%clk 0:02:57]}  e4 {[%clk 0:02:49]} 7. Ne5 {[%clk 0:02:57]}  Bd6 {[%clk 0:02:47]} 8. Bf4 {[%clk 0:02:58]}  Qe7 {[%clk 0:02:44]} 9. Nxd7 {[%clk 0:02:54]}  Bxd7 {[%clk 0:02:43]} 10. Bxd6 {[%clk 0:02:54]}  Qxd6 {[%clk 0:02:44]} 11. Nc3 {[%clk 0:02:54]}  O-O {[%clk 0:02:42]} 12. Qb3 {[%clk 0:02:54]}  Rab8 {[%clk 0:02:33]} 13. Rad1 {[%clk 0:02:54]}  b5 {[%clk 0:02:32]} 14. cxd5 {[%clk 0:02:49]}  cxd5 {[%clk 0:02:31]} 15. a3 {[%clk 0:02:50]}  a5 {[%clk 0:02:29]} 16. f3 {[%clk 0:02:32]}  b4 {[%clk 0:02:20]} 17. axb4 {[%clk 0:02:32]}  axb4 {[%clk 0:02:20]} 18. Nb1 {[%clk 0:02:30]}  Bb5 {[%clk 0:02:08]} 19. Rfe1 {[%clk 0:02:25]}  Rfe8 {[%clk 0:02:07]} 20. Nd2 {[%clk 0:02:23]}  e3 {[%clk 0:01:39]} 21. Nf1 {[%clk 0:02:23]}  Qe7 {[%clk 0:01:26]} 22. g4 {[%clk 0:02:20]}  h5 {[%clk 0:01:21]} 23. g5 {[%clk 0:02:19]}  Nh7 {[%clk 0:01:17]} 24. h4 {[%clk 0:02:15]}  Bc4 {[%clk 0:01:17]} 25. Qc2 {[%clk 0:02:14]}  f6 {[%clk 0:01:15]} 26. g6 {[%clk 0:02:12]}  Nf8 {[%clk 0:01:15]} 27. Ng3 {[%clk 0:02:11]}  f5 {[%clk 0:00:56]} 28. Qxf5 {[%clk 0:02:06]}  Qxh4 {[%clk 0:00:52]} 29. Nxh5 {[%clk 0:02:05]}  Qf2+ {[%clk 0:00:48]} 30. Kh1 {[%clk 0:02:05]}  Qh4+ {[%clk 0:00:48]} 31. Bh3 {[%clk 0:02:02]}  Nxg6 {[%clk 0:00:47]} 32. Rg1 {[%clk 0:01:57]}  Rb6 {[%clk 0:00:47]} 33. Rg3 {[%clk 0:01:50]}  Rf8 {[%clk 0:00:38]} 34. Qd7 {[%clk 0:01:46]}  Qxh5 {[%clk 0:00:35]} 35. Rdg1 {[%clk 0:01:45]}  Bxe2 {[%clk 0:00:31]} 36. Kh2 {[%clk 0:01:44]}  Bxf3 {[%clk 0:00:30]} 37. Rg5 {[%clk 0:01:44]}  Qh4 {[%clk 0:00:20]} 38. R1g3 {[%clk 0:01:43]}  e2 {[%clk 0:00:19]} 39. Rxf3 {[%clk 0:01:37]}  Rxf3 {[%clk 0:00:16]} 40. Qxd5+ {[%clk 0:01:37]}  Rf7 {[%clk 0:00:15]} 41. Qd8+ {[%clk 0:01:36]}  Kh7 {[%clk 0:00:15]} 42. Qxb6 {[%clk 0:01:31]}  Rf2+ {[%clk 0:00:13]} 43. Kg1 {[%clk 0:01:29]}  e1=Q+ {[%clk 0:00:12]} 0-1


[Site "https://www.chess.com"]

[Event "Titled Tuesday Blitz March 21 Early 2023"]
[White "Janaszak, Dawid"]
[Black "Galchenko, Matvey"]
[WhiteFideId "1119206"]
[BlackFideId "24175480"]
[WhiteElo "2220"]
[BlackElo "2404"]
[Result "0-1"]
[Round "03"]
[TimeControl "180+2"]
[Date "2023.03.21"]
[WhiteClock "0:00:03"]
[BlackClock "0:00:07"]

1. e4 {[%clk 0:03:00]}  e6 {[%clk 0:02:54]} 2. b3 {[%clk 0:02:58]}  d5 {[%clk 0:02:54]} 3. Bb2 {[%clk 0:02:58]}  dxe4 {[%clk 0:02:44]} 4. Nc3 {[%clk 0:02:58]}  Nf6 {[%clk 0:02:44]} 5. Qe2 {[%clk 0:02:58]}  Be7 {[%clk 0:02:39]} 6. Nxe4 {[%clk 0:02:56]}  O-O {[%clk 0:02:38]} 7. O-O-O {[%clk 0:02:54]}  a5 {[%clk 0:02:39]} 8. a4 {[%clk 0:02:48]}  c6 {[%clk 0:02:38]} 9. g4 {[%clk 0:02:42]}  b5 {[%clk 0:02:33]} 10. g5 {[%clk 0:02:41]}  Nxe4 {[%clk 0:02:28]} 11. Qxe4 {[%clk 0:02:42]}  Bxg5 {[%clk 0:02:25]} 12. Nf3 {[%clk 0:02:34]}  Bf6 {[%clk 0:02:24]} 13. Ne5 {[%clk 0:02:26]}  bxa4 {[%clk 0:01:49]} 14. Bd3 {[%clk 0:02:26]}  g6 {[%clk 0:01:48]} 15. h4 {[%clk 0:02:17]}  Qd5 {[%clk 0:01:34]} 16. Qf4 {[%clk 0:02:12]}  Nd7 {[%clk 0:01:16]} 17. Ng4 {[%clk 0:01:21]}  Bxb2+ {[%clk 0:01:15]} 18. Kxb2 {[%clk 0:01:21]}  f5 {[%clk 0:01:06]} 19. Nh6+ {[%clk 0:01:10]}  Kg7 {[%clk 0:01:05]} 20. Rhe1 {[%clk 0:01:02]}  e5 {[%clk 0:00:56]} 21. Qg5 {[%clk 0:00:59]}  e4 {[%clk 0:00:54]} 22. Bc4 {[%clk 0:00:38]}  Qe5+ {[%clk 0:00:54]} 23. d4 {[%clk 0:00:38]}  Qf6 {[%clk 0:00:48]} 24. f3 {[%clk 0:00:34]}  Nb6 {[%clk 0:00:17]} 25. Nxf5+ {[%clk 0:00:21]}  Bxf5 {[%clk 0:00:16]} 26. fxe4 {[%clk 0:00:17]}  Nxc4+ {[%clk 0:00:16]} 27. bxc4 {[%clk 0:00:17]}  Rab8+ {[%clk 0:00:16]} 28. Kc3 {[%clk 0:00:16]}  Bd7 {[%clk 0:00:12]} 29. Qxa5 {[%clk 0:00:15]}  Qf3+ {[%clk 0:00:10]} 30. Rd3 {[%clk 0:00:15]}  Qf2 {[%clk 0:00:11]} 31. Red1 {[%clk 0:00:09]}  Rb7 {[%clk 0:00:11]} 32. R1d2 {[%clk 0:00:07]}  Qf1 {[%clk 0:00:10]} 33. Qxa4 {[%clk 0:00:06]}  Qb1 {[%clk 0:00:09]} 34. Qa3 {[%clk 0:00:06]}  Bg4 {[%clk 0:00:07]} 35. Rg2 {[%clk 0:00:03]}  Ra8 {[%clk 0:00:07]} 0-1


[Site "https://www.chess.com"]

[Event "Titled Tuesday Blitz March 21 Early 2023"]
[White "koncheto"]
[Black "Ioannidis, Evgenios"]
[BlackFideId "4229274"]
[WhiteElo "2521"]
[BlackElo "2386"]
[Result "0-1"]
[Round "03"]
[TimeControl "180+2"]
[Date "2023.03.21"]
[WhiteClock "0:00:24"]
[BlackClock "0:00:18"]

1. e4 {[%clk 0:03:00]}  c5 {[%clk 0:03:00]} 2. Nf3 {[%clk 0:03:01]}  d6 {[%clk 0:03:00]} 3. d4 {[%clk 0:03:01]}  cxd4 {[%clk 0:03:01]} 4. Nxd4 {[%clk 0:03:02]}  Nf6 {[%clk 0:03:01]} 5. f3 {[%clk 0:03:03]}  e5 {[%clk 0:03:01]} 6. Nb3 {[%clk 0:03:03]}  d5 {[%clk 0:03:02]} 7. Bg5 {[%clk 0:03:02]}  d4 {[%clk 0:03:02]} 8. c3 {[%clk 0:03:02]}  Nc6 {[%clk 0:03:02]} 9. Bb5 {[%clk 0:03:02]}  Qb6 {[%clk 0:02:58]} 10. Bxc6+ {[%clk 0:03:03]}  bxc6 {[%clk 0:02:58]} 11. cxd4 {[%clk 0:03:03]}  Ba6 {[%clk 0:01:53]} 12. dxe5 {[%clk 0:01:52]}  h6 {[%clk 0:01:22]} 13. Qd4 {[%clk 0:01:34]}  hxg5 {[%clk 0:01:14]} 14. Qxb6 {[%clk 0:01:28]}  axb6 {[%clk 0:01:14]} 15. exf6 {[%clk 0:01:29]}  gxf6 {[%clk 0:01:14]} 16. Nc3 {[%clk 0:01:26]}  Bd6 {[%clk 0:01:13]} 17. Kf2 {[%clk 0:01:07]}  Bc4 {[%clk 0:01:07]} 18. Rad1 {[%clk 0:01:02]}  Ke7 {[%clk 0:01:06]} 19. Nd4 {[%clk 0:00:55]}  Bc5 {[%clk 0:00:58]} 20. b3 {[%clk 0:00:47]}  Rhd8 {[%clk 0:00:47]} 21. Ke3 {[%clk 0:00:47]}  b5 {[%clk 0:00:20]} 22. bxc4 {[%clk 0:00:34]}  Ra3 {[%clk 0:00:19]} 23. Rd3 {[%clk 0:00:24]}  Rxd4 {[%clk 0:00:19]} 24. Nd5+ {[%clk 0:00:24]}  Rxd5+ {[%clk 0:00:18]} 0-1


[Site "https://www.chess.com"]

[Event "Titled Tuesday Blitz March 21 Early 2023"]
[White "Hambleton, Aman"]
[Black "Luo, Terry"]
[WhiteFideId "2606577"]
[BlackFideId "30931045"]
[WhiteElo "2511"]
[BlackElo "2265"]
[Result "1-0"]
[Round "03"]
[TimeControl "180+2"]
[Date "2023.03.21"]
[WhiteClock "0:00:13"]
[BlackClock "0:00:26"]

1. d4 {[%clk 0:03:00]}  Nf6 {[%clk 0:03:00]} 2. Bf4 {[%clk 0:03:01]}  g6 {[%clk 0:03:00]} 3. Nc3 {[%clk 0:03:01]}  d5 {[%clk 0:03:00]} 4. e3 {[%clk 0:03:01]}  Bg7 {[%clk 0:03:01]} 5. h4 {[%clk 0:03:01]}  O-O {[%clk 0:03:02]} 6. h5 {[%clk 0:03:01]}  c5 {[%clk 0:03:02]} 7. hxg6 {[%clk 0:02:54]}  hxg6 {[%clk 0:03:03]} 8. Nf3 {[%clk 0:02:54]}  Nc6 {[%clk 0:03:03]} 9. dxc5 {[%clk 0:01:48]}  Qa5 {[%clk 0:03:00]} 10. Qd2 {[%clk 0:01:46]}  Qxc5 {[%clk 0:02:59]} 11. Ne5 {[%clk 0:01:00]}  Bf5 {[%clk 0:02:32]} 12. Bd3 {[%clk 0:00:53]}  Bxd3 {[%clk 0:01:18]} 13. Qxd3 {[%clk 0:00:34]}  Rad8 {[%clk 0:01:09]} 14. O-O-O {[%clk 0:00:32]}  a6 {[%clk 0:01:00]} 15. f3 {[%clk 0:00:27]}  b5 {[%clk 0:01:00]} 16. Nxc6 {[%clk 0:00:20]}  Qxc6 {[%clk 0:01:00]} 17. Be5 {[%clk 0:00:20]}  e6 {[%clk 0:00:55]} 18. Qd4 {[%clk 0:00:18]}  Ne8 {[%clk 0:00:49]} 19. Bxg7 {[%clk 0:00:07]}  Nxg7 {[%clk 0:00:50]} 20. Qf6 {[%clk 0:00:06]}  Rc8 {[%clk 0:00:27]} 21. Qh4 {[%clk 0:00:01]}  f6 {[%clk 0:00:26]} 22. a3 {[%clk 0:00:01]}  Kf7 {[%clk 0:00:24]} 23. e4 {[%clk 0:00:01]}  dxe4 {[%clk 0:00:22]} 24. Qxe4 {[%clk 0:00:01]}  Qxe4 {[%clk 0:00:21]} 25. Nxe4 {[%clk 0:00:02]}  Rcd8 {[%clk 0:00:19]} 26. c3 {[%clk 0:00:01]}  g5 {[%clk 0:00:19]} 27. Nc5 {[%clk 0:00:02]}  a5 {[%clk 0:00:19]} 28. Nb7 {[%clk 0:00:01]}  Rxd1+ {[%clk 0:00:19]} 29. Rxd1 {[%clk 0:00:02]}  a4 {[%clk 0:00:19]} 30. Nd6+ {[%clk 0:00:03]}  Kg6 {[%clk 0:00:19]} 31. Nxb5 {[%clk 0:00:04]}  Nf5 {[%clk 0:00:20]} 32. Nd4 {[%clk 0:00:03]}  Ne3 {[%clk 0:00:20]} 33. Rd2 {[%clk 0:00:03]}  e5 {[%clk 0:00:19]} 34. Nc6 {[%clk 0:00:02]}  Rh8 {[%clk 0:00:19]} 35. Re2 {[%clk 0:00:02]}  Nd5 {[%clk 0:00:16]} 36. Nb4 {[%clk 0:00:02]}  Nf4 {[%clk 0:00:17]} 37. Rd2 {[%clk 0:00:03]}  Rh2 {[%clk 0:00:17]} 38. c4 {[%clk 0:00:02]}  Rxg2 {[%clk 0:00:15]} 39. Rxg2 {[%clk 0:00:02]}  Nxg2 {[%clk 0:00:16]} 40. c5 {[%clk 0:00:03]}  Nf4 {[%clk 0:00:17]} 41. c6 {[%clk 0:00:02]}  Ne6 {[%clk 0:00:17]} 42. Nd5 {[%clk 0:00:02]}  e4 {[%clk 0:00:15]} 43. fxe4 {[%clk 0:00:02]}  g4 {[%clk 0:00:16]} 44. Kd2 {[%clk 0:00:03]}  f5 {[%clk 0:00:16]} 45. exf5+ {[%clk 0:00:02]}  Kxf5 {[%clk 0:00:17]} 46. c7 {[%clk 0:00:03]}  Nxc7 {[%clk 0:00:16]} 47. Nxc7 {[%clk 0:00:03]}  Kf4 {[%clk 0:00:17]} 48. Ke2 {[%clk 0:00:04]}  Kg3 {[%clk 0:00:17]} 49. Nd5 {[%clk 0:00:04]}  Kh2 {[%clk 0:00:18]} 50. Ne3 {[%clk 0:00:03]}  g3 {[%clk 0:00:18]} 51. Nf1+ {[%clk 0:00:04]}  Kg2 {[%clk 0:00:19]} 52. Nxg3 {[%clk 0:00:05]}  Kxg3 {[%clk 0:00:20]} 53. Kd3 {[%clk 0:00:05]}  Kf3 {[%clk 0:00:20]} 54. Kc4 {[%clk 0:00:06]}  Ke4 {[%clk 0:00:21]} 55. Kb4 {[%clk 0:00:07]}  Kd5 {[%clk 0:00:22]} 56. Kxa4 {[%clk 0:00:08]}  Kc6 {[%clk 0:00:22]} 57. b4 {[%clk 0:00:09]}  Kb6 {[%clk 0:00:23]} 58. b5 {[%clk 0:00:10]}  Kb7 {[%clk 0:00:24]} 59. Kb4 {[%clk 0:00:11]}  Ka7 {[%clk 0:00:25]} 60. a4 {[%clk 0:00:12]}  Kb7 {[%clk 0:00:26]} 61. a5 {[%clk 0:00:12]}  Ka7 {[%clk 0:00:26]} 62. Kc5 {[%clk 0:00:13]} 1-0


[Site "https://www.chess.com"]

[Event "Titled Tuesday Blitz March 21 Early 2023"]
[White "Rom, Jasper"]
[Black "Weetik, Vjacheslav"]
[WhiteFideId "2023733"]
[BlackFideId "4153472"]
[WhiteElo "2233"]
[BlackElo "2469"]
[Result "0-1"]
[Round "03"]
[TimeControl "180+2"]
[Date "2023.03.21"]
[WhiteClock "0:00:15"]
[BlackClock "0:00:13"]

1. e4 {[%clk 0:02:59]}  c6 {[%clk 0:02:58]} 2. d4 {[%clk 0:02:58]}  d5 {[%clk 0:02:58]} 3. exd5 {[%clk 0:02:58]}  cxd5 {[%clk 0:02:57]} 4. Bd3 {[%clk 0:02:59]}  Nc6 {[%clk 0:02:58]} 5. c3 {[%clk 0:02:59]}  g6 {[%clk 0:02:58]} 6. Nf3 {[%clk 0:02:55]}  Bf5 {[%clk 0:02:58]} 7. Bxf5 {[%clk 0:02:52]}  gxf5 {[%clk 0:02:58]} 8. O-O {[%clk 0:02:53]}  e6 {[%clk 0:02:56]} 9. Bf4 {[%clk 0:02:51]}  Bd6 {[%clk 0:02:56]} 10. Ne5 {[%clk 0:02:47]}  Qc7 {[%clk 0:02:25]} 11. Re1 {[%clk 0:02:37]}  Nge7 {[%clk 0:02:19]} 12. Qh5 {[%clk 0:02:23]}  Bxe5 {[%clk 0:02:16]} 13. Rxe5 {[%clk 0:02:08]}  Qd7 {[%clk 0:01:53]} 14. Re2 {[%clk 0:02:00]}  Ng6 {[%clk 0:01:29]} 15. Bg5 {[%clk 0:01:51]}  h6 {[%clk 0:01:20]} 16. Bd2 {[%clk 0:01:35]}  O-O-O {[%clk 0:01:16]} 17. Na3 {[%clk 0:01:35]}  Rdg8 {[%clk 0:01:10]} 18. Rae1 {[%clk 0:01:34]}  f4 {[%clk 0:01:05]} 19. Kh1 {[%clk 0:01:21]}  Nce7 {[%clk 0:00:58]} 20. Nc2 {[%clk 0:01:04]}  Nf5 {[%clk 0:00:58]} 21. g3 {[%clk 0:00:57]}  Qb5 {[%clk 0:00:37]} 22. b3 {[%clk 0:00:48]}  a5 {[%clk 0:00:32]} 23. Na3 {[%clk 0:00:44]}  Qd3 {[%clk 0:00:29]} 24. Bc1 {[%clk 0:00:34]}  fxg3 {[%clk 0:00:25]} 25. fxg3 {[%clk 0:00:32]}  Kb8 {[%clk 0:00:16]} 26. Rd2 {[%clk 0:00:32]}  Qxg3 {[%clk 0:00:14]} 27. Rg1 {[%clk 0:00:19]}  Qxg1+ {[%clk 0:00:13]} 28. Kxg1 {[%clk 0:00:18]}  Nf4+ {[%clk 0:00:14]} 29. Kf1 {[%clk 0:00:15]}  Nxh5 {[%clk 0:00:14]} 30. Rf2 {[%clk 0:00:16]}  Rc8 {[%clk 0:00:12]} 31. Nc2 {[%clk 0:00:16]}  Rxc3 {[%clk 0:00:11]} 32. Bb2 {[%clk 0:00:16]}  Rxc2 {[%clk 0:00:11]} 33. Rxc2 {[%clk 0:00:16]}  Ne3+ {[%clk 0:00:11]} 34. Ke2 {[%clk 0:00:17]}  Nxc2 {[%clk 0:00:12]} 35. Kd3 {[%clk 0:00:17]}  Nb4+ {[%clk 0:00:12]} 36. Kd2 {[%clk 0:00:17]}  Nxa2 {[%clk 0:00:13]} 37. Ba3 {[%clk 0:00:16]}  Rg8 {[%clk 0:00:11]} 38. Bd6+ {[%clk 0:00:17]}  Kc8 {[%clk 0:00:11]} 39. Kd3 {[%clk 0:00:17]}  Rg2 {[%clk 0:00:12]} 40. Ke3 {[%clk 0:00:17]}  Kd7 {[%clk 0:00:13]} 41. Kf3 {[%clk 0:00:17]}  Rb2 {[%clk 0:00:13]} 42. Be5 {[%clk 0:00:17]}  Rxb3+ {[%clk 0:00:13]} 43. Kg4 {[%clk 0:00:18]}  a4 {[%clk 0:00:13]} 44. Kxh5 {[%clk 0:00:18]}  a3 {[%clk 0:00:13]} 45. Bg7 {[%clk 0:00:15]}  Nb4 {[%clk 0:00:12]} 46. Bf8 {[%clk 0:00:16]}  a2 {[%clk 0:00:13]} 47. Kxh6 {[%clk 0:00:15]}  a1=Q {[%clk 0:00:13]} 0-1


[Site "https://www.chess.com"]